bitfinex/quotes_ETHUSD_20260119
["timestamp","ask_amount","ask_price","bid_price","bid_amount"]
[1768836649215,1.37245803,3211.9,3211.4,0.98898468]
[1768836649507,0.91721661,3211.8,3211.5,0.002]
[1768836651228,0.91901797,3211.9,3211.5,0.99098468]
[1768836651743,0.00180136,3211.9,3211.5,0.99098468]
[1768836652042,0.91721661,3212.2,3211.6,0.98898468]
[1768836652222,1.43101829,3212.3,3211.6,0.98898468]
[1768836652934,4.54407332,3212.3,3211.6,0.98898468]
[1768836653237,0.92540581,3212.1,3211.6,0.98898468]
[1768836656039,4.03863444,3212.1,3211.6,0.98898468]
[1768836656726,0.92540581,3212.1,3211.6,0.98898468]
[1768836657122,0.92540581,3212.0,3211.5,0.00280144]
[1768836657727,0.92540581,3212.0,3211.5,0.98899578]
[1768836661139,0.92540581,3212.0,3211.8,0.002]
[1768836661342,1.37470488,3212.0,3211.5,0.98899578]
[1768836664322,0.92540581,3212.0,3211.5,0.98899578]
[1768836668644,0.92540581,3212.2,3211.6,0.98619434]
[1768836668837,0.92540581,3212.1,3211.6,0.98619434]
[1768836669727,0.92540581,3212.1,3211.5,0.00280144]
[1768836670329,0.92540581,3212.1,3211.5,0.98899578]
[1768836670948,0.00080168,3212.3,3211.5,0.98899578]
[1768836671446,0.92620749,3212.3,3211.5,0.98899578]
[1768836671647,4.03926773,3212.3,3211.5,0.98899578]
[1768836671816,4.03926773,3212.3,3211.6,0.98619434]
[1768836672016,0.92620749,3212.3,3211.6,0.98619434]
[1768836672855,0.92620749,3212.3,3211.8,0.98819434]
[1768836673354,4.03924658,3212.3,3211.8,0.98819434]
[1768836673525,0.92540581,3212.2,3211.8,0.002]
[1768836673726,0.92540581,3212.1,3211.8,0.002]
[1768836674038,0.92540581,3212.1,3211.5,0.00280144]
[1768836674425,0.92540581,3212.1,3211.5,0.98899578]
[1768836678055,0.92540581,3212.1,3211.6,0.98619434]
[1768836678530,0.513,3212.2,3211.6,0.98619434]
[1768836679759,1.43840581,3212.2,3211.6,0.98619434]
[1768836682025,0.513,3212.2,3211.6,0.98619434]
[1768836682258,0.92540581,3212.1,3211.6,0.98619434]
[1768836682459,0.92540581,3212.1,3211.5,0.00280144]
[1768836683866,0.92540581,3212.1,3211.5,0.95874354]
[1768836684061,0.9330682,3212.1,3211.5,0.00280144]
[1768836685056,0.9330682,3212.1,3211.8,0.002]
[1768836685250,0.9340682,3211.9,3211.5,0.00280144]
[1768836688070,0.9330682,3211.8,3211.5,0.00280144]
[1768836691350,0.9330682,3211.5,3211.1,0.002]
[1768836691558,0.9330682,3211.4,3210.9,0.00280312]
[1768836691853,0.9330682,3211.2,3210.4,0.17917536]
[1768836692571,0.51380312,3211.3,3210.2,0.69697743]
[1768836692572,0.9330682,3211.1,3210.2,0.69697743]
[1768836693480,0.9330682,3210.9,3210.2,0.69697743]
[1768836693846,0.9330682,3210.9,3210.2,0.5158024]
[1768836694351,0.0008024,3211.0,3210.3,0.18117438]
[1768836694751,0.9338706,3211.0,3210.3,0.18117438]
[1768836695877,0.9330682,3210.9,3210.3,0.18117438]
[1768836696056,0.9330682,3210.9,3210.2,0.87889789]
[1768836696256,0.9330682,3210.9,3210.2,0.5158024]
[1768836696458,0.9330682,3210.7,3210.2,0.5158024]
[1768836697266,0.9330682,3210.7,3210.5,0.002]
[1768836697463,0.9330682,3210.7,3210.2,0.5158024]
[1768836697668,0.9330682,3210.9,3210.3,3.29613256]
[1768836698070,0.9330682,3210.9,3210.4,0.18117313]
[1768836699384,0.0008024,3211.0,3210.5,0.26179484]
[1768836700371,0.98613513,3211.0,3210.5,0.26179424]
[1768836700558,0.98613513,3211.0,3210.4,0.38119347]
[1768836700559,0.98613513,3211.0,3210.4,3.1148343]
[1768836700753,0.98613513,3211.0,3210.5,3.11476673]
[1768836700970,0.98613513,3211.0,3210.6,0.31147667]
[1768836702264,0.98613513,3211.0,3210.4,3.11482846]
[1768836702778,0.98613513,3211.0,3210.3,3.37671913]
[1768836703390,0.0008024,3211.0,3210.4,0.26179337]
[1768836704598,0.98613513,3211.0,3210.5,3.11477962]
[1768836704997,0.98613513,3211.0,3210.5,3.37657243]
[1768836705297,0.0008024,3211.0,3210.6,0.26179281]
[1768836706692,0.0008024,3211.0,3210.7,3.37637813]
[1768836706895,0.0008024,3211.0,3210.7,0.26179253]
[1768836708566,0.0008024,3211.0,3210.8,3.1144886]
[1768836709404,0.0008024,3211.0,3210.7,3.37634141]
[1768836709590,0.0008024,3211.0,3210.7,4.05940479]
[1768836710583,0.0008024,3211.0,3210.7,7.17399039]
[1768836712471,0.98613593,3211.6,3210.8,0.26098853]
[1768836712671,0.98613593,3211.6,3211.0,0.26098853]
[1768836712877,0.98613593,3211.6,3211.0,3.37528113]
[1768836713570,0.98613593,3211.6,3210.9,0.0008032]
[1768836713771,0.90404284,3211.5,3210.9,0.0008032]
[1768836718906,0.90404284,3211.4,3210.9,0.0008032]
[1768836720090,0.90404284,3211.3,3210.9,0.0008032]
[1768836720807,0.90404284,3210.9,3209.6,0.002]
[1768836721118,0.00080248,3211.0,3209.8,0.26259114]
[1768836721119,0.90404284,3210.7,3209.8,0.26259114]
[1768836721291,0.90404284,3210.5,3209.8,0.26259114]
[1768836721684,0.90404284,3210.5,3209.8,3.37796615]
[1768836722711,0.90404284,3210.5,3209.9,0.26178908]
[1768836724021,0.90404284,3210.5,3209.8,0.00080184]
[1768836724022,0.90404284,3210.4,3209.8,0.00080184]
[1768836725003,0.90404284,3210.3,3209.8,0.00080184]
[1768836731435,0.90404284,3210.2,3209.8,0.00080184]
[1768836734510,0.90404284,3210.2,3210.1,0.002]
[1768836734709,0.90404284,3210.2,3209.8,0.00280184]
[1768836739447,0.90484524,3210.6,3209.9,0.26458798]
[1768836739962,0.90404284,3210.5,3209.9,0.26458798]
[1768836740855,0.0008024,3210.6,3210.0,0.26458761]
[1768836741155,0.90484524,3210.6,3210.0,0.26458761]
[1768836742631,0.90484524,3210.6,3210.1,0.26458743]
[1768836744168,0.0008024,3210.6,3210.1,0.26458743]
[1768836744345,0.0008024,3210.6,3210.3,0.2645869]
[1768836746255,0.0008024,3210.6,3210.3,3.37946957]
[1768836746976,0.0008024,3210.6,3210.4,0.26458639]
[1768836749672,0.0008024,3210.6,3210.5,0.26458606]
[1768836750152,0.0008024,3210.6,3210.3,0.91404597]
[1768836750965,0.0008024,3210.6,3210.3,0.64946008]
[1768836752650,0.0008024,3210.6,3210.3,0.91404565]
[1768836752869,0.0008024,3210.6,3210.2,3.11502083]
[1768836753076,0.99935388,3210.6,3210.2,3.11502083]
[1768836753367,0.99935388,3210.6,3210.2,3.37960625]
[1768836753943,0.0008024,3210.6,3210.2,3.37960625]
[1768836754143,0.0008024,3210.6,3210.2,0.26458542]
[1768836755056,0.99935388,3210.6,3210.0,3.37981429]
[1768836756674,0.99935388,3210.6,3209.9,3.62834607]
[1768836758281,0.99935388,3210.6,3210.0,0.26458465]
[1768836758447,0.001,3210.3,3210.0,0.26458465]
[1768836760574,0.001,3210.3,3210.1,3.11516775]
[1768836761972,0.001,3210.3,3210.1,3.37975169]
[1768836762175,0.0008024,3210.6,3210.3,0.26458394]
[1768836762391,0.0008024,3210.6,3210.4,0.26458394]
[1768836762745,0.0008024,3210.6,3210.3,4.02896718]
[1768836763786,0.0008024,3210.6,3210.3,4.02900384]
[1768836771951,0.0008024,3210.6,3210.3,7.14397751]
[1768836772354,0.00080248,3211.0,3210.4,0.26458262]
[1768836772581,0.00080248,3211.0,3210.6,0.26458262]
[1768836773889,0.00080248,3211.0,3210.7,6.2291712]
[1768836774088,0.9117253,3211.3,3210.8,0.26458225]
[1768836774288,0.0008032,3211.3,3210.9,0.26458225]
[1768836776290,0.0008032,3211.3,3211.0,3.11429461]
[1768836776498,0.0008032,3211.3,3211.1,0.33788769]
[1768836780171,0.0008032,3211.3,3211.1,3.45206693]
[1768836780561,0.0008032,3211.6,3211.2,0.26458156]
[1768836780754,0.9117253,3211.6,3211.1,12.6544869]
[1768836780989,0.9117253,3211.6,3211.1,6.83084611]
[1768836781189,0.9117253,3211.6,3211.2,0.36323109]
[1768836782382,0.9117253,3211.6,3211.3,3.11400367]
[1768836784388,1e-08,3211.6,3211.3,6.22800734]
[1768836784586,1e-08,3211.6,3211.3,3.11400367]
[1768836785697,0.00180144,3211.9,3211.5,0.9433739]
[1768836785871,0.91172378,3212.3,3211.7,0.9433739]
[1768836786287,0.00080168,3212.3,3211.7,0.9433739]
[1768836786486,0.00080168,3212.3,3211.9,0.9433739]
[1768836786858,0.9117245,3212.6,3212.0,0.9433739]
[1768836787101,0.00080232,3212.9,3212.4,0.9433739]
[1768836787319,0.91172442,3212.9,3212.2,0.94417638]
[1768836787479,0.91172442,3212.9,3212.3,0.9433739]
[1768836788798,0.91172442,3212.9,3212.3,4.05640735]
[1768836789829,0.91172442,3212.9,3212.3,0.9433739]
[1768836790818,0.91172442,3212.9,3212.4,0.9433739]
[1768836790985,0.91172442,3212.9,3212.3,3.11303015]
[1768836791816,0.91172442,3212.9,3212.4,0.9433739]
[1768836793111,0.91172442,3212.9,3212.4,4.05630736]
[1768836794223,0.91172442,3212.9,3212.6,0.002]
[1768836795708,0.00080232,3212.9,3212.6,0.9453739]
[1768836796437,0.9109221,3213.5,3212.8,0.94417534]
[1768836796929,0.9109221,3213.5,3212.9,0.9433739]
[1768836797520,0.9109221,3213.5,3212.9,4.05575697]
[1768836799217,0.00080296,3213.6,3213.0,0.9433739]
[1768836799410,0.00080296,3213.6,3213.2,0.9433739]
[1768836799733,0.91172506,3213.6,3213.2,0.9433739]
[1768836800111,0.00080296,3213.6,3213.3,0.9433739]
[1768836804149,0.00080296,3213.6,3213.2,1.3723309]
[1768836804658,0.00080296,3213.6,3213.2,0.40556331]
[1768836804659,0.94081768,3213.6,3213.2,0.40556331]
[1768836804853,0.94081768,3213.6,3212.9,3.11240781]
[1768836805060,0.94081768,3213.6,3212.9,4.0791754]
[1768836805362,0.94081768,3213.6,3213.1,4.07901136]
[1768836805656,0.00080296,3213.6,3213.3,3.11206484]
[1768836805986,0.00080296,3213.6,3213.4,0.96676759]
[1768836806845,0.00080296,3213.6,3213.2,0.96676759]
[1768836807054,0.00080296,3213.6,3213.2,1.95414722]
[1768836807515,0.00080296,3213.6,3213.2,0.96676759]
[1768836807712,0.001,3213.3,3213.2,0.96676759]
[1768836808538,0.001,3213.3,3213.1,0.513]
[1768836809443,0.001,3213.3,3213.0,0.96676759]
[1768836809645,0.94101472,3213.3,3212.9,3.62545041]
[1768836809865,0.94101472,3213.3,3213.0,0.45930194]
[1768836810059,0.001,3213.3,3213.0,0.45930194]
[1768836810565,0.001,3213.3,3213.0,1.42606953]
[1768836812067,0.001,3213.3,3213.1,0.96676759]
[1768836812736,0.94081768,3213.6,3213.1,0.96676759]
[1768836813270,0.94081768,3213.6,3213.0,6.27282964]
[1768836813491,0.94081768,3213.6,3212.9,0.513]
[1768836813770,0.94001472,3213.5,3212.9,4.56939969]
[1768836813961,0.94001472,3213.5,3212.9,3.62541473]
[1768836814135,0.94001472,3213.5,3212.9,4.59218232]
[1768836814971,0.94001472,3213.5,3213.0,0.96676759]
[1768836815161,0.94001472,3213.5,3213.1,0.45921823]
[1768836818975,0.94001472,3213.5,3213.1,1.42598582]
[1768836819480,0.00080264,3213.9,3213.3,0.96676759]
[1768836819643,4.05184831,3214.4,3213.7,0.96676759]
[1768836819839,0.94001472,3214.3,3213.7,1.64479712]
[1768836820071,4.05111768,3214.3,3213.7,1.64479712]
[1768836820273,0.91403746,3214.3,3213.7,0.96676759]
[1768836820477,0.00080008,3214.4,3213.8,0.93836704]
[1768836820647,0.91483754,3214.4,3213.8,0.93836704]
[1768836820851,4.02585349,3214.4,3213.8,0.93836704]
[1768836821081,0.91403746,3214.3,3213.8,0.93836704]
[1768836823063,0.00080008,3214.4,3213.9,0.93756424]
[1768836823270,0.00080008,3214.4,3213.9,1.34255638]
[1768836823474,0.00080008,3214.4,3214.0,0.93756424]
[1768836824680,0.00080008,3214.4,3214.1,0.93756424]
[1768836826611,0.00080008,3214.4,3214.1,4.0487787]
[1768836826783,0.00080008,3214.4,3214.2,0.93756424]
[1768836827164,0.001,3214.7,3214.4,0.93756424]
[1768836833073,0.001,3214.7,3214.2,7.97463984]
[1768836833275,0.98267568,3214.7,3214.2,2.16111214]
[1768836836814,0.98267568,3214.7,3214.3,0.93209691]
[1768836837127,0.001,3214.7,3214.3,0.93209691]
[1768836837423,0.001,3214.7,3214.3,1.45933077]
[1768836839924,0.001,3214.7,3214.3,0.93209691]
[1768836841611,0.00080024,3215.2,3214.3,0.93209691]
[1768836841612,0.00080024,3215.2,3214.6,0.93209691]
[1768836841791,3.62279314,3215.7,3215.1,0.93209691]
[1768836841792,0.982476,3215.6,3215.1,0.93209691]
[1768836843424,0.00080032,3215.6,3215.1,0.93209691]
[1768836843623,0.98167568,3215.8,3215.3,6.74562461]
[1768836843919,0.513,3216.2,3215.2,0.0008004]
[1768836843920,0.513,3216.2,3215.7,0.93209691]
[1768836844326,1.44571504,3216.2,3215.7,0.93209691]
[1768836844891,4.55498354,3216.2,3215.7,0.93209691]
[1768836845091,0.93271499,3216.1,3215.7,0.93209691]
[1768836846630,4.04207703,3216.1,3215.7,0.93209691]
[1768836846840,0.93271499,3216.1,3215.7,0.93209691]
[1768836848118,4.0421162,3216.1,3215.6,0.0008008]
[1768836848525,0.93271484,3216.0,3215.6,0.0008008]
[1768836849221,0.93271479,3215.8,3215.6,0.0008008]
[1768836849796,0.93271475,3216.0,3215.6,0.0008008]
[1768836850046,4.04221469,3216.0,3215.6,0.0008008]
[1768836850328,0.513,3216.1,3215.6,0.93289771]
[1768836850713,1.44571475,3216.1,3215.6,0.93289771]
[1768836850915,0.9327147,3216.0,3215.6,0.93289771]
[1768836851124,0.9327147,3216.0,3215.6,0.0008008]
[1768836852407,3.10941279,3216.1,3215.6,0.93289771]
[1768836852606,4.04199144,3216.2,3215.6,0.93289771]
[1768836853932,0.93271456,3216.1,3215.6,0.93289771]
[1768836854934,0.93271456,3216.1,3215.9,0.001]
[1768836855138,0.93271451,3216.0,3215.6,0.0008008]
[1768836856049,0.93271447,3215.8,3215.2,0.93289731]
[1768836856242,0.93271447,3215.8,3215.2,0.0008004]
[1768836858348,0.93271447,3215.8,3215.3,0.6678618]
[1768836858349,0.93271438,3215.6,3215.3,0.6678618]
[1768836858643,0.93271438,3215.6,3215.4,0.6678618]
[1768836858838,0.93271438,3215.6,3215.2,0.83562765]
[1768836859202,0.93271438,3215.6,3215.2,0.0008004]
[1768836859636,0.93271433,3215.5,3215.2,0.0008004]
[1768836862025,3.82513478,3215.6,3215.2,0.0008004]
[1768836862840,4.75784894,3215.6,3215.2,0.0008004]
[1768836863043,4.04262894,3215.6,3215.2,0.0008004]
[1768836863825,0.93271408,3215.5,3215.2,0.0008004]
[1768836864735,0.93271404,3215.4,3215.2,0.0008004]
[1768836866168,0.93271404,3215.4,3214.8,0.00080032]
[1768836866665,4.04341341,3215.6,3214.9,0.9306926]
[1768836866832,3.11069941,3215.6,3214.9,0.9306926]
[1768836867360,0.0008004,3215.6,3215.3,0.9306926]
[1768836867562,3.11031736,3216.0,3215.3,0.9306926]
[1768836867930,0.0008008,3216.0,3215.3,0.9306926]
[1768836868130,0.0008008,3216.0,3215.5,0.9306926]
[1768836871134,0.0008008,3216.0,3215.6,0.9306926]
[1768836874737,0.00280328,3216.3,3215.6,4.04131307]
[1768836875074,0.00280328,3216.3,3215.8,0.9306926]
[1768836878980,0.00280328,3216.3,3215.9,0.9306926]
[1768836879389,0.002,3216.0,3215.9,0.9306926]
[1768836879554,0.00280328,3216.3,3216.0,0.9306926]
[1768836881646,0.93631638,3216.6,3216.0,0.9306926]
[1768836881873,0.93351379,3216.5,3216.0,0.9306926]
[1768836883476,3.10906603,3216.4,3216.0,0.9306926]
[1768836883859,4.04252762,3216.5,3216.0,0.9306926]
[1768836885157,0.9335137,3216.4,3216.0,0.9306926]
[1768836885694,4.04263971,3216.4,3216.0,0.9306926]
[1768836885893,0.9335137,3216.4,3216.0,0.9306926]
[1768836886198,3.11172394,3216.6,3216.0,0.9306926]
[1768836886974,4.04523757,3216.6,3216.0,0.9306926]
[1768836887688,3.1090412,3216.5,3216.0,0.9306926]
[1768836887893,0.9335136,3216.4,3216.0,0.9306926]
[1768836888273,3.1090412,3216.5,3216.0,0.9306926]
[1768836888676,0.9335136,3216.4,3216.0,0.9306926]
[1768836890293,4.04255474,3216.5,3216.0,0.9306926]
[1768836890595,3.1090412,3216.5,3216.0,0.9306926]
[1768836890791,4.04523455,3216.6,3216.0,0.9306926]
[1768836891696,0.002,3216.2,3216.0,0.9306926]
[1768836892005,0.002,3216.5,3216.0,0.95253057]
[1768836892195,0.002,3216.5,3216.1,0.95253057]
[1768836898307,0.00280256,3216.6,3216.2,0.98744832]
[1768836898873,4.04223508,3216.8,3216.3,0.98744832]
[1768836900408,7.15095679,3216.8,3216.3,0.98744832]
[1768836900587,0.93351324,3216.7,3216.3,0.98744832]
[1768836900791,4.04230779,3216.7,3216.3,0.98744832]
[1768836901193,0.93351324,3216.7,3216.3,0.98744832]
[1768836901393,0.00080304,3217.0,3216.6,0.98744832]
[1768836901581,0.00080304,3217.0,3216.7,0.67915132]
[1768836901799,0.93431585,3217.3,3216.6,0.98825144]
[1768836901995,0.93431585,3217.3,3216.8,0.98744832]
[1768836902676,4.04252869,3217.3,3216.8,0.98744832]
[1768836903086,7.15074153,3217.3,3216.8,0.98744832]
[1768836903287,4.04252869,3217.3,3216.8,0.98744832]
[1768836903495,0.93351316,3217.2,3216.8,0.98744832]
[1768836904716,3.10901548,3217.3,3216.8,0.98744832]
[1768836905117,0.00080264,3217.3,3216.8,0.98744832]
[1768836905494,0.93431575,3217.3,3216.8,0.67923164]
[1768836905695,0.93431575,3217.3,3216.6,0.51280312]
[1768836905909,0.93431575,3217.3,3216.6,0.00080312]
[1768836906624,0.93351308,3216.9,3216.2,0.00080264]
[1768836906796,0.00080312,3217.0,3216.2,0.98825096]
[1768836906996,0.93431618,3217.0,3216.2,0.98825096]
[1768836907828,0.93431618,3217.0,3216.3,0.40975996]
[1768836908132,0.93431618,3217.0,3216.3,0.98744832]
[1768836909335,3.10858279,3216.9,3216.3,0.98744832]
[1768836910000,4.04209578,3216.9,3216.3,0.98744832]
[1768836910203,0.93351299,3216.8,3216.2,0.00080264]
[1768836910620,0.93351299,3216.8,3216.2,0.98825096]
[1768836912343,4.042204,3216.8,3216.2,0.98825096]
[1768836912640,0.93351294,3216.7,3216.2,0.46176983]
[1768836912835,0.93351294,3216.7,3216.2,0.98825096]
[1768836914242,0.00080264,3217.3,3216.6,0.98744832]
[1768836914403,0.00080264,3217.3,3216.7,0.98744832]
[1768836915939,1.44551288,3217.5,3217.0,0.98744832]
[1768836915940,4.5535316,3217.5,3217.0,0.98744832]
[1768836916441,4.0415316,3217.5,3217.0,0.98744832]
[1768836916744,3.10801872,3217.5,3217.0,0.98744832]
[1768836916946,7.14955027,3217.5,3217.0,0.98744832]
[1768836917111,0.93351283,3217.4,3216.9,0.00080272]
[1768836917616,0.93351283,3217.4,3216.9,0.98825104]
[1768836918141,0.93631497,3217.6,3216.9,6.79231595]
[1768836918343,0.93631497,3217.6,3217.0,0.98744832]
[1768836920623,4.04151587,3217.5,3217.0,0.98744832]
[1768836922241,4.04426803,3217.6,3217.0,0.98744832]
[1768836922844,0.93351269,3217.5,3217.0,0.98744832]
[1768836923050,0.93351269,3217.5,3216.9,0.95633591]
[1768836923250,0.93351269,3217.5,3217.0,0.95553319]
[1768836924453,0.93351269,3217.5,3216.9,0.00080272]
[1768836924624,0.93351267,3217.3,3216.9,0.00080272]
[1768836925020,0.93431539,3217.3,3216.6,0.0008032]
[1768836925331,0.00080272,3217.3,3216.7,0.95553319]
[1768836925545,0.00080272,3217.3,3216.9,0.95553319]
[1768836925744,4.04247879,3217.8,3217.3,0.95553319]
[1768836925923,0.93470993,3217.8,3217.3,0.95553319]
[1768836926323,4.0424623,3217.8,3217.3,0.95553319]
[1768836927061,0.93270989,3217.7,3217.2,0.00080224]
[1768836927554,0.93270989,3217.7,3217.2,0.95633543]
[1768836928727,4.04061636,3217.6,3217.2,0.00080224]
[1768836928928,4.04061636,3217.6,3217.3,0.001]
[1768836929259,0.002,3217.5,3217.3,0.001]
[1768836932869,0.93470978,3217.5,3217.3,0.001]
[1768836933279,0.93270978,3217.4,3217.3,0.001]
[1768836933945,0.93270978,3217.4,3216.9,0.0008028]
[1768836934343,0.93270978,3217.4,3216.9,0.95633599]
[1768836936361,0.002,3217.5,3216.9,0.95633599]
[1768836937033,3.11004788,3217.5,3216.9,0.95633599]
[1768836937656,4.04275759,3217.5,3216.9,0.95633599]
[1768836937870,0.93470971,3217.5,3216.9,0.95633599]
[1768836938043,0.9327097,3217.4,3216.9,0.95633599]
[1768836940855,4.04082949,3217.4,3216.9,0.95633599]
[1768836941055,0.9327097,3217.4,3216.9,0.95633599]
[1768836941778,4.0408343,3217.4,3216.9,0.95633599]
[1768836942374,7.1489589,3217.4,3216.9,0.95633599]
[1768836942553,7.1489589,3217.4,3216.9,0.0008028]
[1768836942554,0.93270962,3217.3,3216.9,0.0008028]
[1768836942752,0.93270962,3217.3,3217.2,0.001]
[1768836942956,0.002,3217.2,3216.9,0.0008028]
[1768836943162,0.002,3217.2,3216.6,0.90617104]
[1768836943163,0.9347096,3217.2,3216.6,0.90617104]
[1768836943383,0.9327096,3217.0,3216.6,0.90617104]
[1768836943555,0.9327096,3217.0,3216.6,0.0008032]
[1768836944780,3.10858279,3216.9,3216.6,0.0008032]
[1768836945079,0.93270957,3216.8,3216.6,0.0008032]
[1768836945292,0.93190637,3216.6,3216.2,0.00080264]
[1768836945495,0.93190637,3216.6,3215.9,0.00080336]
[1768836945668,0.93270901,3216.6,3215.9,0.00080336]
[1768836945864,0.93110371,3216.4,3215.9,0.00080336]
[1768836946854,0.9311037,3216.2,3215.9,0.00080336]
[1768836947691,0.9311037,3216.2,3215.6,0.90616872]
[1768836947692,0.9311037,3216.1,3215.6,0.00080088]
[1768836948100,0.93030032,3215.9,3215.2,0.00080048]
[1768836948453,0.93030032,3215.9,3215.2,0.90616832]
[1768836948962,0.51280088,3216.0,3215.2,0.90616832]
[1768836948963,0.00080088,3216.0,3215.2,0.90616832]
[1768836949165,0.00080088,3216.0,3215.2,3.11099703]
[1768836949359,3.11026356,3216.0,3215.4,0.90536784]
[1768836949562,0.93030031,3215.9,3215.2,0.00080048]
[1768836949886,0.9303003,3215.6,3215.2,0.00080048]
[1768836950184,0.93110078,3215.6,3214.6,0.512]
[1768836950389,0.00080048,3215.6,3214.8,0.90616816]
[1768836950553,0.51280048,3215.6,3214.8,0.90616816]
[1768836950757,0.00080048,3215.6,3214.8,0.90616816]
[1768836950979,0.00080048,3215.6,3214.9,0.90536784]
[1768836951482,0.93030028,3215.6,3214.9,0.90536784]
[1768836951687,0.9294998,3215.5,3214.9,0.90536784]
[1768836953472,4.03952071,3215.5,3214.9,0.90536784]
[1768836954652,0.9294998,3215.5,3214.9,0.90536784]
[1768836954858,7.13655766,3215.6,3214.9,0.97739456]
[1768836955059,0.91606382,3215.4,3214.9,0.97739456]
[1768836955588,0.9168643,3215.6,3214.9,0.97739456]
[1768836955791,0.00080048,3215.6,3214.9,0.97739456]
[1768836956489,0.00080048,3215.6,3215.2,0.002]
[1768836956788,4.02672306,3215.6,3215.2,0.002]
[1768836956996,1.62971225,3215.5,3215.2,0.002]
[1768836957664,4.73966513,3215.5,3215.2,0.002]
[1768836957865,0.91606382,3215.4,3215.2,0.002]
[1768836958485,0.91606382,3215.4,3214.9,0.002]
[1768836958959,0.41606382,3215.4,3214.9,0.002]
[1768836959160,0.7349618,3215.3,3214.9,0.97939456]
[1768836959359,3.11068186,3215.6,3214.9,0.97939456]
[1768836959595,4.02674568,3215.6,3214.9,0.97939456]
[1768836959961,3.11068186,3215.6,3214.9,0.97939456]
[1768836960394,0.00080048,3215.6,3215.1,0.97739456]
[1768836960995,3.11065937,3215.6,3215.1,0.97739456]
[1768836961795,0.00080048,3215.6,3215.1,0.97739456]
[1768836961996,0.00080048,3215.6,3215.2,0.97739456]
[1768836964197,0.9168643,3215.6,3215.1,0.512]
[1768836965902,4.02600006,3215.5,3215.1,0.512]
[1768836966597,4.02600006,3215.5,3214.9,0.002]
[1768836966598,0.91606382,3215.4,3214.9,0.002]
[1768836966797,0.91606382,3215.4,3214.9,0.97939456]
[1768836969908,0.91606382,3215.2,3214.9,0.002]
[1768836970993,0.91806382,3215.2,3214.9,0.002]
[1768836971678,4.02638698,3215.1,3214.9,0.002]
[1768836972706,3.11226701,3215.2,3214.9,0.002]
[1768836972909,4.02833083,3215.2,3214.9,0.002]
[1768836973604,0.002,3215.2,3214.9,0.002]
[1768836973827,0.002,3215.2,3214.9,0.97939456]
[1768836974304,0.91806382,3215.2,3214.9,0.002]
[1768836975608,0.002,3215.2,3214.9,0.97939456]
[1768836976794,0.002,3215.2,3214.9,0.002]
[1768836976994,0.91806382,3215.2,3214.9,0.002]
[1768836978690,4.02833375,3215.2,3214.9,0.002]
[1768836978894,0.91806382,3215.2,3214.9,0.002]
[1768836979206,3.11199015,3215.5,3215.0,0.97739456]
[1768836981294,0.002,3215.5,3215.0,0.97739456]
[1768836983938,0.002,3215.5,3215.1,0.91655349]
[1768836984135,0.00080048,3215.6,3215.3,0.91655349]
[1768836984447,3.10961601,3215.9,3215.4,0.91655349]
[1768836985419,0.90193908,3215.9,3215.4,0.91655349]
[1768836985736,0.90193908,3215.9,3215.2,0.00180056]
[1768836985941,0.90193908,3215.9,3215.3,0.512]
[1768836987234,7.12174171,3216.0,3215.4,0.91655349]
[1768836988142,0.90193908,3215.9,3215.4,0.91655349]
[1768836990536,3.10964612,3215.8,3215.4,0.91655349]
[1768836991255,7.12123132,3215.8,3215.3,1.42855349]
[1768836992064,4.0115852,3215.8,3215.4,0.91655349]
[1768836992651,3.11031739,3216.0,3215.4,0.91655349]
[1768836993528,6.2198339,3216.0,3215.4,0.91655349]
[1768836994146,0.90193908,3215.9,3215.3,0.512]
[1768836994666,4.0115852,3215.8,3215.3,1.42855349]
[1768836994872,4.0115852,3215.8,3215.4,0.91655349]
[1768836995056,3.10964612,3215.8,3215.4,0.91655349]
[1768836995365,3.10961687,3215.9,3215.4,0.91655349]
[1768836995930,3.11030318,3216.0,3215.4,0.91655349]
[1768836996378,6.21980548,3216.0,3215.4,0.91655349]
[1768836996532,4.0115852,3215.8,3215.3,0.512]
[1768836996733,0.90193908,3215.7,3215.3,0.512]
[1768836997343,3.10964612,3215.8,3215.4,0.91655349]
[1768836997982,0.002,3215.7,3215.4,0.91655349]
[1768836999377,0.002,3215.7,3215.3,0.512]
[1768836999378,0.90393908,3215.7,3215.3,0.512]
[1768837002086,4.01372526,3215.7,3215.3,1.48780681]
[1768837003658,0.002,3215.7,3215.3,1.48780681]
[1768837007181,0.002,3215.7,3215.3,0.97580681]
[1768837007376,0.9488712,3215.7,3215.2,0.00180056]
[1768837007690,0.9488712,3215.7,3215.2,0.97760737]
[1768837009401,0.9468712,3215.5,3215.2,0.00180056]
[1768837009895,0.9468712,3215.5,3214.9,0.002]
[1768837011066,3.11064009,3215.6,3214.9,0.97780681]
[1768837011267,3.62364009,3215.6,3214.9,0.00080008]
[1768837011599,3.62364009,3215.6,3215.0,0.97580681]
[1768837012169,3.11064009,3215.6,3215.0,0.97580681]
[1768837013200,3.87886646,3215.6,3215.0,0.97580681]
[1768837015213,0.00080056,3215.6,3215.0,0.97580681]
[1768837018316,3.10941403,3216.1,3215.3,0.97079829]
[1768837018610,4.06316451,3216.0,3215.4,1.48279829]
[1768837018811,0.95088374,3215.9,3215.2,0.97159893]
[1768837018993,0.95088374,3215.9,3215.3,0.512]
[1768837019591,0.95088374,3215.7,3215.2,0.00080064]
[1768837021710,4.06057551,3215.8,3215.2,0.97159893]
[1768837021910,3.10969177,3215.8,3215.2,0.97159893]
[1768837022220,7.17026728,3215.8,3215.2,0.97159893]
[1768837022992,0.002,3215.4,3215.2,0.97159893]
[1768837036735,0.002,3215.4,3215.3,0.97079829]
[1768837038410,0.95088374,3215.3,3214.4,0.00080016]
[1768837038641,0.002,3215.4,3214.4,0.00080016]
[1768837038642,0.95088374,3214.7,3214.4,0.00080016]
[1768837039002,0.95088374,3214.7,3214.1,0.97079829]
[1768837039740,0.0008028,3214.2,3213.5,0.00080272]
[1768837039900,0.95088374,3213.1,3212.3,0.002]
[1768837040104,0.95088374,3213.0,3212.3,0.002]
[1768837040337,0.95088374,3212.7,3212.3,0.002]
[1768837040632,5.80678712,3213.2,3212.3,0.72193637]
[1768837040633,0.00080144,3213.2,3212.3,0.72193637]
[1768837040834,0.00080144,3213.2,3212.6,0.71993637]
[1768837041056,0.95088374,3213.7,3212.8,0.72073789]
[1768837041202,0.95088374,3213.6,3213.0,5.80598568]
[1768837041407,0.00080016,3214.8,3214.1,0.97079829]
[1768837041639,0.95288374,3215.4,3214.6,5.80598568]
[1768837041934,0.95088374,3215.3,3214.2,0.512]
[1768837042101,6.22211692,3215.4,3214.1,0.512]
[1768837042102,0.95088374,3215.1,3214.1,0.512]
[1768837042303,0.95088374,3215.1,3214.0,0.00080024]
[1768837042304,0.95088374,3214.9,3214.0,0.00080024]
[1768837042511,0.95088374,3214.8,3214.0,0.00080024]